bitfinex/quotes_SOLUSD_20251024
["timestamp","ask_amount","ask_price","bid_price","bid_amount"]
[1761270994939,2.57022427,193.03,192.99,36.22]
[1761270995114,2.57022427,193.04,192.98,14.13669948]
[1761270995536,2.57022427,193.05,192.99,36.22]
[1761270995736,2.57022427,193.04,192.99,36.22]
[1761270995937,2.57022427,193.04,192.98,11.56647521]
[1761270996141,2.57022427,193.03,192.99,36.22]
[1761270996523,2.57022427,193.03,192.99,36.91]
[1761270996728,2.57022427,193.04,192.99,36.91]
[1761270998142,2.57022427,193.05,193.0,36.91]
[1761270998323,18.02790818,193.06,193.0,36.91]
[1761270998523,2.57022427,193.05,193.0,36.91]
[1761270999444,2.57022427,193.04,193.0,36.91]
[1761270999736,2.57022427,193.04,193.0,0.69]
[1761270999938,2.57022427,193.03,193.0,0.69]
[1761271000544,2.57022427,193.03,193.01,36.22]
[1761271000835,2.57022427,193.03,193.0,0.69]
[1761271001241,2.57022427,193.03,192.98,16.05827412]
[1761271001540,2.57022427,193.03,192.99,36.22]
[1761271002044,2.57022427,193.03,192.99,36.89]
[1761271002450,15.76451636,193.06,192.98,16.05827412]
[1761271002658,2.57022427,193.02,192.99,36.22]
[1761271002940,2.57022427,193.02,193.0,36.22]
[1761271003131,2.57022427,193.03,193.0,36.22]
[1761271003624,20.5,193.01,193.0,36.22]
[1761271006035,20.5,193.01,192.98,0.67]
[1761271006234,20.5,193.01,192.99,3.24022427]
[1761271006433,20.5,193.01,192.99,0.67]
[1761271006632,20.5,193.01,193.0,0.67]
[1761271007035,20.5,193.01,193.0,3.24022427]
[1761271007541,46.00847968,193.06,193.0,3.24022427]
[1761271007742,46.00847968,193.06,193.01,36.89]
[1761271008457,2.57022427,193.05,193.01,36.89]
[1761271008951,43.43825541,193.06,193.01,36.89]
[1761271008952,2.57022427,193.04,193.01,36.89]
[1761271009147,2.57022427,193.04,193.02,36.22]
[1761271009641,25.45022427,193.04,193.03,36.22]
[1761271009840,22.88,193.04,193.03,36.22]
[1761271013454,25.45022427,193.04,193.03,36.22]
[1761271013755,7.88058241,193.04,192.97,0.67]
[1761271013958,2.57022427,193.02,192.98,36.2]
[1761271014131,2.57022427,193.03,192.98,36.2]
[1761271014331,45.38058241,193.04,192.98,36.87]
[1761271014755,44.46087143,193.04,192.98,36.87]
[1761271014963,44.46087143,193.04,192.98,42.05183609]
[1761271015753,44.46087143,193.04,192.98,43.70234938]
[1761271016142,44.46087143,193.04,192.99,36.2]
[1761271016543,44.46087143,193.04,192.99,36.87]
[1761271016849,39.28051329,193.04,192.99,42.0515986]
[1761271017369,37.5,193.04,192.99,43.03211189]
[1761271017655,37.5,193.04,193.0,0.67]
[1761271017862,37.5,193.04,193.0,2.32051329]
[1761271018366,37.5,193.04,193.01,36.2]
[1761271018575,37.5,193.04,193.01,36.87]
[1761271018864,37.5,193.04,193.01,0.67]
[1761271019066,37.5,193.04,193.02,36.2]
[1761271020554,37.5,193.04,193.02,36.87]
[1761271020858,37.5,193.04,193.02,36.2]
[1761271021636,37.5,193.04,193.03,2.32051329]
[1761271021841,37.5,193.04,193.0,5.18134715]
[1761271022142,15.37850136,193.06,193.02,0.67]
[1761271022359,22.88,193.06,193.02,2.32051329]
[1761271022665,22.88,193.06,193.04,1.65051329]
[1761271022859,22.88,193.06,193.05,36.2]
[1761271026366,38.38037563,193.06,193.05,36.2]
[1761271027045,14.42783535,193.09,193.05,36.87]
[1761271027241,3.83504215,193.08,193.06,0.67]
[1761271027459,3.83504215,193.07,193.06,0.67]
[1761271027742,3.83504215,193.08,193.06,0.67]
[1761271027973,3.83803338,193.07,193.06,0.67]
[1761271028265,19.24672138,193.08,193.06,0.67]
[1761271028470,3.83803338,193.07,193.06,0.67]
[1761271029463,3.83803338,193.07,193.06,36.18]
[1761271029969,3.83803338,193.07,193.06,36.85]
[1761271032354,3.83803338,193.07,193.06,0.67]
[1761271032558,3.83803338,193.07,193.06,36.83]
[1761271034179,3.83803338,193.07,193.06,0.67]
[1761271034477,3.83803338,193.07,193.06,36.83]
[1761271035563,3.83803338,193.07,193.06,0.67]
[1761271035862,3.83803338,193.07,193.06,36.83]
[1761271039278,3.83803338,193.07,193.06,36.81]
[1761271040389,3.83803338,193.07,193.06,0.67]
[1761271040572,3.83803338,193.07,193.06,36.81]
[1761271041182,3.83803338,193.07,193.06,41.98973686]
[1761271041869,3.83803338,193.07,193.06,43.64025015]
[1761271042070,3.83803338,193.07,193.06,54.51672536]
[1761271043479,28.05708442,193.16,193.07,10.87647521]
[1761271043680,3.87437784,193.15,193.11,1.65051329]
[1761271043888,3.87437784,193.14,193.12,36.14]
[1761271044100,3.87437784,193.13,193.12,36.14]
[1761271044473,3.87437784,193.13,193.12,36.79]
[1761271047886,3.87437784,193.13,193.12,38.44051329]
[1761271048086,3.87437784,193.13,193.12,43.61864087]
[1761271048289,3.87437784,193.13,193.12,54.49511608]
[1761271050881,3.87437784,193.13,193.12,16.70460279]
[1761271051087,3.87437784,193.13,193.12,54.47511608]
[1761271052169,3.87437784,193.17,193.12,54.47511608]
[1761271052379,3.87437784,193.16,193.14,5.17759138]
[1761271052695,15.20279981,193.18,193.15,36.1]
[1761271052874,3.86425713,193.17,193.15,36.76]
[1761271053194,3.86425713,193.16,193.15,36.76]
[1761271053693,3.86425713,193.16,193.15,0.66]
[1761271053985,3.86425713,193.16,193.15,36.76]
[1761271054781,3.86425713,193.16,193.15,0.66]
[1761271055095,3.86425713,193.16,193.15,36.76]
[1761271058186,3.86425713,193.17,193.15,36.76]
[1761271058386,3.86425713,193.16,193.15,41.27732332]
[1761271058589,3.86425713,193.16,193.15,42.92783661]
[1761271058791,28.05519223,193.23,193.15,42.92783661]
[1761271059091,3.98992589,193.22,193.16,2.31051329]
[1761271059290,3.85992589,193.21,193.16,2.31051329]
[1761271059483,3.85992589,193.2,193.16,2.31051329]
[1761271059684,3.85992589,193.19,193.16,2.31051329]
[1761271059898,0.13,193.22,193.16,2.31051329]
[1761271059899,3.85992589,193.18,193.16,7.48740781]
[1761271060099,22.88,193.16,193.09,0.66]
[1761271060396,5.51043918,193.15,193.1,21.28]
[1761271060707,3.85992589,193.14,193.1,21.28]
[1761271060879,3.85992589,193.13,193.1,21.94]
[1761271061086,3.85992589,193.12,193.1,21.94]
[1761271061289,29.83772594,193.16,193.1,21.94]
[1761271061488,3.86091785,193.15,193.11,0.7]
[1761271061698,3.86091785,193.14,193.12,36.1]
[1761271061891,3.86091785,193.13,193.12,36.1]
[1761271062381,3.86091785,193.13,193.11,36.1]
[1761271062580,3.86091785,193.12,193.11,36.1]
[1761271062887,1.65051329,193.13,193.08,0.7]
[1761271063085,3.86091785,193.12,193.08,36.8]
[1761271063285,1.65051329,193.13,193.08,36.8]
[1761271063286,3.86091785,193.11,193.08,36.8]
[1761271063494,3.86091785,193.1,193.07,5.17933189]
[1761271063700,3.86301273,193.09,193.05,0.7]
[1761271063884,3.86301273,193.08,193.05,0.7]
[1761271064200,1.78051329,193.11,193.06,36.1]
[1761271064408,3.86348193,193.1,193.06,36.1]
[1761271064592,3.86348193,193.09,193.06,36.1]
[1761271064794,3.86348193,193.08,193.05,36.8]
[1761271064989,3.86348193,193.08,193.04,5.18002143]
[1761271064990,3.86348193,193.07,193.03,0.7]
[1761271065303,1.78051329,193.09,193.03,36.8]
[1761271065487,5.5149349,193.08,193.03,36.8]
[1761271065801,3.86442161,193.07,193.04,0.7]
[1761271066007,1.65051329,193.1,193.04,0.7]
[1761271066207,3.86442041,193.09,193.04,0.7]
[1761271066398,3.86442041,193.08,193.04,0.7]
[1761271066592,3.86442041,193.07,193.04,0.7]
[1761271066792,1.65051329,193.1,193.04,5.88014165]
[1761271066996,3.86509099,193.09,193.04,5.88014165]
[1761271067210,3.86509099,193.08,193.05,0.7]
[1761271067506,3.86509099,193.07,193.05,0.7]
[1761271067710,1.65051329,193.1,193.05,0.7]
[1761271068006,3.8653232,193.09,193.05,0.7]
[1761271068211,3.8653232,193.08,193.05,0.7]
[1761271068509,3.8653232,193.07,193.05,0.7]
[1761271068808,1.65051329,193.09,193.05,0.7]
[1761271069001,3.8655569,193.08,193.05,0.7]
[1761271069202,3.8655569,193.07,193.05,0.7]
[1761271069402,3.8655569,193.06,193.05,0.7]
[1761271069697,3.8655569,193.08,193.05,0.7]
[1761271070006,3.8655569,193.07,193.05,0.7]
[1761271070212,3.8655569,193.06,193.05,0.7]
[1761271070885,3.8655569,193.06,193.03,36.8]
[1761271071090,1.65051329,193.07,193.03,36.8]
[1761271071306,3.86628412,193.06,193.03,36.8]
[1761271071520,1.65051329,193.08,193.04,0.7]
[1761271071692,3.86628471,193.07,193.04,0.7]
[1761271071891,3.86628471,193.06,193.02,5.18081027]
[1761271072105,0.13,193.07,193.02,41.98081027]
[1761271072304,3.86644964,193.06,193.02,41.98081027]
[1761271072502,1.65051329,193.07,193.03,0.7]
[1761271072704,3.86645001,193.06,193.03,0.7]
[1761271072893,3.86645001,193.05,193.03,0.7]
[1761271073092,1.65051329,193.07,193.03,0.7]
[1761271073314,3.86660427,193.06,193.03,0.7]
[1761271073490,3.86660427,193.05,193.03,0.7]
[1761271073689,1.65051329,193.07,193.03,0.7]
[1761271073892,3.86660484,193.06,193.03,0.7]
[1761271074190,3.86660484,193.05,193.03,0.7]
[1761271074389,6.82976277,193.08,193.03,5.88050542]
[1761271074709,6.44452674,193.07,193.03,5.88050542]
[1761271074909,3.86663403,193.06,193.04,0.7]
[1761271075215,3.86663403,193.05,193.04,0.7]
[1761271075515,3.86663403,193.07,193.04,0.7]
[1761271075700,3.86663403,193.06,193.04,0.7]
[1761271075900,3.86663403,193.05,193.04,0.7]
[1761271076104,3.86663403,193.07,193.04,0.7]
[1761271076306,3.86663403,193.06,193.04,0.7]
[1761271076512,3.86663403,193.05,193.04,0.7]
[1761271076811,3.86663403,193.07,193.04,0.7]
[1761271077018,3.86663403,193.06,193.04,0.7]
[1761271077210,3.86663403,193.05,193.04,0.7]
[1761271077814,3.86663403,193.07,193.04,0.7]
[1761271078013,3.86663403,193.06,193.04,0.7]
[1761271078315,3.86663403,193.05,193.04,0.7]
[1761271078617,3.86663403,193.08,193.04,5.88027351]
[1761271078814,3.86663403,193.07,193.04,5.88027351]
[1761271079022,3.86663403,193.06,193.05,0.7]
[1761271080624,3.86663403,193.06,193.05,5.88000518]
[1761271082628,2.57789271,193.12,193.05,44.51789789]
[1761271082813,6.44340692,193.11,193.06,0.7]
[1761271083005,6.44340692,193.1,193.06,0.7]
[1761271083204,3.86551421,193.09,193.06,0.7]
[1761271083411,2.57789271,193.1,193.06,0.7]
[1761271083412,3.86551421,193.08,193.06,0.7]
[1761271083600,3.86551421,193.07,193.06,0.7]
[1761271085028,3.86551421,193.07,193.06,5.87957208]
[1761271085217,3.86551421,193.09,193.06,5.87957208]
[1761271085433,3.86551421,193.08,193.07,0.7]
[1761271086233,3.86551421,193.08,193.07,5.87946858]
[1761271088340,3.86551421,193.08,193.07,0.7]
[1761271092641,3.86551421,193.08,193.06,0.7]
[1761271092806,3.86551421,193.07,193.06,0.7]
[1761271096425,7.33492076,193.2,193.07,10.87647521]
[1761271096625,7.33492076,193.2,193.08,3.27789271]
[1761271096626,0.7,193.15,193.08,3.27789271]
[1761271096924,2.57789271,193.14,193.08,36.76]
[1761271097332,0.7,193.13,193.08,36.76]
[1761271097508,0.7,193.13,193.08,0.7]
[1761271097708,0.7,193.14,193.1,5.1786639]
[1761271097919,0.7,193.14,193.1,5.8786639]
[1761271098334,3.27789271,193.14,193.1,5.1786639]
[1761271098521,2.57789271,193.14,193.1,5.1786639]
[1761271098722,0.7,193.13,193.1,5.1786639]
[1761271098942,0.7,193.13,193.09,5.1789321]
[1761271099110,0.7,193.13,193.09,5.8789321]
[1761271100020,0.7,193.13,193.1,5.878523]
[1761271100529,2.57789271,193.15,193.1,5.878523]
[1761271100530,3.27789271,193.15,193.1,5.878523]
[1761271100725,0.7,193.14,193.1,5.878523]
[1761271100913,0.7,193.14,193.1,5.178523]
[1761271101118,3.27789271,193.16,193.11,0.7]
[1761271101329,0.7,193.15,193.11,0.7]
[1761271102015,0.7,193.15,193.11,5.87822167]
[1761271102537,0.7,193.15,193.11,5.17822167]
[1761271103136,3.27789271,193.15,193.11,5.17822167]
[1761271103525,0.7,193.14,193.11,5.17822167]
[1761271103717,0.7,193.14,193.1,5.1786639]
[1761271104536,0.7,193.14,193.1,5.8786639]
[1761271105035,0.7,193.14,193.1,0.7]
[1761271106349,25.45789271,193.17,193.1,3.27789271]
[1761271106544,0.7,193.14,193.1,3.27789271]
[1761271107142,0.7,193.14,193.11,5.17839573]
[1761271108046,0.7,193.14,193.11,5.89839573]
[1761271108418,3.87275991,193.13,193.11,5.89839573]
[1761271108751,3.87275991,193.12,193.11,5.89839573]
[1761271109052,3.87275991,193.12,193.1,7.75655661]
[1761271109246,3.87275991,193.11,193.1,18.63303182]
[1761271109632,3.87275991,193.11,193.1,19.35303182]
[1761271112322,0.71,193.15,193.1,19.35303182]
[1761271112522,3.87069071,193.14,193.12,5.17812758]
[1761271112732,3.87069071,193.13,193.12,5.17812758]
[1761271114057,4.58069071,193.13,193.11,5.17837404]
[1761271114232,4.58069071,193.12,193.07,5.17946858]
[1761271114423,6.44858342,193.11,193.07,5.17946858]
[1761271114624,6.44858342,193.1,193.07,5.17946858]
[1761271114823,3.87069071,193.09,193.07,5.17946858]
[1761271115052,3.87069071,193.08,193.07,5.17946858]
[1761271116444,3.87069071,193.08,193.06,5.17973686]
[1761271116649,0.71,193.09,193.06,5.17973686]
[1761271116852,3.87109275,193.08,193.06,5.17973686]
[1761271117050,0.71,193.09,193.06,5.17973686]
[1761271117237,3.87126277,193.08,193.06,5.17973686]
[1761271117436,0.71,193.09,193.06,5.17973686]
[1761271117742,3.87126248,193.08,193.05,5.18000518]
[1761271117947,2.57789271,193.11,193.06,0.72]
[1761271118148,4.5812616,193.1,193.06,0.72]
[1761271118445,3.8712616,193.09,193.06,0.72]
[1761271118651,3.8712616,193.08,193.06,0.72]
[1761271118830,0.71,193.1,193.06,0.72]
[1761271119025,3.87152566,193.09,193.06,0.72]
[1761271119336,3.87152566,193.08,193.06,0.72]
[1761271119536,0.71,193.1,193.06,0.72]
[1761271119750,3.87180559,193.09,193.07,5.17946858]
[1761271119955,3.87180559,193.08,193.07,5.17946858]
[1761271126442,3.87180559,193.08,193.07,19.3538365]
[1761271126648,0.7,193.17,193.08,10.87647521]
[1761271126832,0.7,193.16,193.11,2.57789271]
[1761271127174,0.7,193.16,193.1,10.87647521]
[1761271127356,3.27789271,193.16,193.1,47.63647521]
[1761271127742,0.7,193.15,193.1,47.63647521]
[1761271128052,0.7,193.15,193.1,46.91647521]
[1761271128258,0.7,193.15,193.11,5.89839573]
[1761271131870,0.7,193.15,193.12,0.72]
[1761271132068,0.7,193.15,193.11,5.17839573]
[1761271132241,0.7,193.15,193.11,5.89839573]
[1761271133375,0.7,193.15,193.11,5.17839573]
[1761271133537,0.7,193.15,193.12,5.89791186]
[1761271133743,0.7,193.15,193.12,5.17791186]
[1761271134772,0.7,193.15,193.11,5.89839573]
[1761271135274,0.7,193.15,193.11,5.17839573]
[1761271136748,2.34867342,193.15,193.11,5.17839573]
[1761271137362,0.7,193.14,193.11,5.17839573]
[1761271138666,3.87396782,193.13,193.1,5.1786639]
[1761271138864,3.87396782,193.12,193.1,5.8986639]
[1761271139073,3.87396782,193.11,193.1,5.8986639]
[1761271139957,3.87396782,193.11,193.09,12.94712975]
[1761271139958,4.57396782,193.11,193.09,5.1789321]
[1761271140158,3.87396782,193.1,193.09,5.8989321]
[1761271140364,3.87396782,193.1,193.09,5.1789321]
[1761271141261,3.87396782,193.1,193.09,5.8989321]
[1761271141456,3.87396782,193.1,193.08,5.17920033]
[1761271141768,71.88147002,193.18,193.08,5.17920033]
[1761271141769,3.87396782,193.09,193.08,5.17920033]
[1761271142373,6.22264124,193.09,193.04,10.87647521]
[1761271142575,4.57396782,193.08,193.04,0.72]
[1761271142746,3.87396782,193.07,193.04,0.72]
[1761271142948,3.87396782,193.06,193.04,0.72]
[1761271143274,0.7,193.08,193.04,0.72]
[1761271143481,3.87669462,193.07,193.04,5.90027351]
[1761271143654,3.87669462,193.06,193.04,5.90027351]
[1761271143979,0.7,193.08,193.04,5.90027351]
[1761271144142,3.87657485,193.07,193.04,5.90027351]
[1761271144347,3.87657485,193.06,193.04,5.90027351]
[1761271144649,0.7,193.08,193.04,5.90027351]
[1761271144967,3.87628753,193.07,193.04,5.90027351]
[1761271145158,3.87628753,193.06,193.04,5.90027351]
[1761271145344,3.8759093,193.05,193.04,5.18027351]
[1761271146873,3.8759093,193.05,193.01,5.1810787]
[1761271146874,6.22458272,193.05,193.01,5.1810787]
[1761271147063,4.5759093,193.04,193.01,5.1810787]
[1761271147374,0.7,193.04,193.01,5.1810787]
[1761271147578,0.7,193.03,193.01,5.1810787]
[1761271148192,0.7,193.03,193.0,5.18134715]
[1761271148687,0.7,193.03,193.0,5.90134715]
[1761271148874,0.7,193.05,193.0,5.90134715]
[1761271149189,4.57383074,193.04,193.01,0.72]
[1761271149377,3.87383074,193.03,193.01,0.72]
[1761271149570,0.7,193.04,193.01,0.72]
[1761271149881,3.87290012,193.03,193.01,0.72]
[1761271150085,0.7,193.04,193.01,0.72]
[1761271150267,3.87277892,193.03,193.02,5.18081027]
[1761271151162,0.7,193.04,193.02,5.18081027]
[1761271153891,1.64867342,193.07,193.01,10.87647521]
[1761271154090,3.87018653,193.06,193.03,0.67]
[1761271154299,3.87018653,193.05,193.03,0.67]
[1761271154479,3.87018653,193.04,193.03,0.67]
[1761271154662,3.87018653,193.06,193.03,0.67]
[1761271154861,3.87018653,193.05,193.03,2.31867342]
[1761271155060,36.0,193.11,193.04,1.64867342]
[1761271155291,3.86900429,193.1,193.07,1.64867342]
[1761271155470,3.86900429,193.09,193.07,1.64867342]
[1761271155670,36.66,193.11,193.07,0.67]
[1761271155885,3.86881564,193.1,193.08,5.17920033]
[1761271156070,3.86881564,193.09,193.08,5.17920033]
[1761271156988,0.66,193.11,193.08,5.17920033]
[1761271157287,3.86889385,193.1,193.08,5.17920033]
[1761271157482,3.86889385,193.09,193.08,5.17920033]
[1761271157680,3.86889385,193.1,193.08,5.17920033]
[1761271157878,0.66,193.11,193.08,5.17920033]
[1761271157879,3.86889385,193.09,193.08,5.17920033]
[1761271158076,3.86889385,193.1,193.08,5.17920033]
[1761271158291,3.86889385,193.09,193.08,5.17920033]
[1761271158784,3.86889385,193.1,193.08,5.17920033]
[1761271158968,0.66,193.14,193.09,1.64867342]
[1761271159175,3.86919237,193.13,193.09,1.64867342]
[1761271159477,4.52919237,193.12,193.08,16.05567554]
[1761271159672,3.86919237,193.11,193.09,0.67]
[1761271159873,3.86919237,193.1,193.09,0.67]
[1761271160262,3.86919237,193.1,193.09,5.8489321]
[1761271165477,3.86919237,193.1,193.09,7.49760552]
[1761271166490,3.86919237,193.1,193.09,5.8489321]
[1761271167992,3.86919237,193.1,193.09,7.49760552]
[1761271171398,0.7,193.13,193.09,5.8489321]
[1761271171695,3.86885019,193.12,193.09,7.49760552]
[1761271171896,3.86885019,193.11,193.09,7.49760552]
[1761271172073,0.7,193.13,193.09,7.49760552]
[1761271172273,3.86884737,193.12,193.09,7.49760552]
[1761271172488,3.86884737,193.11,193.09,7.49760552]
[1761271172692,0.7,193.13,193.09,7.49760552]
[1761271172883,3.86896398,193.12,193.09,7.49760552]
[1761271173192,3.86896398,193.11,193.09,5.8489321]
[1761271173375,0.7,193.13,193.09,5.8489321]
[1761271173581,3.86911815,193.12,193.09,5.8489321]
[1761271173892,3.86911815,193.11,193.09,5.8489321]
[1761271174189,0.7,193.14,193.11,5.17839573]
[1761271174387,3.8692767,193.13,193.11,5.17839573]
[1761271174690,3.8692767,193.12,193.11,5.17839573]
[1761271176792,3.8692767,193.12,193.1,5.1786639]
[1761271176991,3.8692767,193.11,193.1,5.8786639]
[1761271178380,3.8692767,193.11,193.1,5.1786639]
[1761271183099,4.5292767,193.11,193.05,0.66]
[1761271183292,3.8692767,193.1,193.06,2.30867342]
[1761271183603,3.87065122,193.09,193.07,1.64867342]
[1761271183802,0.66,193.11,193.07,2.30867342]
[1761271183975,3.87065034,193.1,193.07,38.30867342]
[1761271184175,3.87065034,193.09,193.07,38.30867342]
[1761271184395,0.66,193.11,193.08,5.17920033]
[1761271184596,3.87077429,193.1,193.08,5.17920033]
[1761271184795,3.87077429,193.09,193.08,5.17920033]
[1761271184979,0.66,193.11,193.08,5.17920033]
[1761271185183,0.66,193.14,193.09,13.18514863]
[1761271185389,3.87050353,193.13,193.09,13.18514863]
[1761271185606,3.87050353,193.12,193.1,0.66]
[1761271185804,3.87050353,193.11,193.1,0.66]
[1761271186301,3.87050353,193.11,193.1,5.8386639]
[1761271187407,3.87050353,193.11,193.1,18.36381253]
[1761271188595,0.66,193.14,193.1,67.31047229]
[1761271188799,3.86994022,193.13,193.11,1.64867342]
[1761271188999,3.86994022,193.12,193.11,2.30867342]
[1761271189516,0.66,193.16,193.11,1.64867342]
[1761271189703,106.34867342,193.18,193.11,12.52514863]
[1761271189704,3.86977291,193.15,193.11,12.52514863]
[1761271189902,3.86977291,193.14,193.12,5.17812758]
[1761271190220,3.86977291,193.13,193.12,5.17812758]
[1761271193316,3.86977291,193.13,193.12,5.83812758]
[1761271194316,3.86977291,193.13,193.12,5.17812758]
[1761271197192,4.52977291,193.13,193.12,5.17812758]
[1761271197593,3.86977291,193.13,193.12,5.17812758]
[1761271198715,4.52977291,193.13,193.1,5.83839679]
[1761271199014,4.52977291,193.12,193.1,5.17839679]
[1761271199222,3.86977291,193.11,193.1,5.17839679]
[1761271200699,3.86977291,193.11,193.1,7.75381388]
[1761271201206,3.86977291,193.11,193.1,5.17839679]
[1761271201810,24.36977291,193.11,193.1,5.17839679]
[1761271202008,24.36977291,193.11,193.1,8.41381388]
[1761271202239,24.36977291,193.11,193.1,7.75381388]
[1761271202521,24.36977291,193.11,193.1,5.17839679]
[1761271203018,24.36977291,193.11,193.1,7.75381388]
[1761271203200,24.36977291,193.11,193.1,19.29028909]
[1761271204020,24.36977291,193.11,193.1,18.63028909]
[1761271205222,25.02977291,193.11,193.1,5.17839679]
[1761271206622,24.36977291,193.11,193.09,8.41434919]
[1761271206820,3.86977291,193.1,193.09,8.41434919]
[1761271207027,3.86977291,193.1,193.09,18.6308244]
[1761271207725,3.86977291,193.1,193.09,19.2908244]
[1761271208713,3.86977291,193.1,193.09,7.75434919]
[1761271208907,4.52977291,193.1,193.05,13.4518923]
[1761271209227,3.86977291,193.09,193.07,2.57541709]
[1761271209421,3.86977291,193.08,193.07,2.57541709]
[1761271209628,3.86977291,193.08,193.05,46.87647521]
[1761271209629,3.86977291,193.08,193.05,10.87647521]
[1761271209804,3.86977291,193.07,193.05,14.1118923]
[1761271209999,20.5,193.11,193.06,2.57541709]
[1761271210231,3.88146531,193.1,193.07,2.57541709]
[1761271210412,3.88146531,193.09,193.08,5.17920033]
[1761271210612,4.54146531,193.09,193.08,5.17920033]
[1761271211635,3.88146531,193.09,193.07,5.17946858]
[1761271211838,3.88146531,193.08,193.07,5.17946858]
[1761271214038,3.88146531,193.08,193.06,21.41440492]
[1761271214237,0.72,193.1,193.06,21.41440492]
[1761271214439,3.88093022,193.09,193.06,21.41440492]
[1761271214739,0.72,193.14,193.09,10.87647521]
[1761271214920,3.88054906,193.13,193.11,2.57541709]
[1761271215113,3.88054906,193.12,193.11,2.57541709]
[1761271215536,3.88054906,193.12,193.1,39.28541709]
[1761271215743,3.88054906,193.11,193.1,50.1618923]
[1761271216444,3.88054906,193.11,193.1,55.3405562]
[1761271216742,3.88054906,193.11,193.1,78.2205562]
[1761271216928,41.38054906,193.11,193.1,78.2205562]
[1761271217120,3.88054906,193.11,193.1,75.64513911]
[1761271217418,3.88054906,193.11,193.1,78.2205562]
[1761271218751,3.88054906,193.11,193.1,42.2205562]
[1761271218940,3.88054906,193.11,193.1,78.2205562]
[1761271221445,3.88054906,193.11,193.1,55.3405562]
[1761271222747,3.88054906,193.11,193.1,19.3405562]
[1761271222942,3.88054906,193.11,193.1,55.3205562]
[1761271223253,3.88054906,193.11,193.1,52.74513911]
[1761271224353,3.88054906,193.11,193.1,16.05513911]
[1761271224534,7.17596615,193.11,193.02,0.71]
[1761271224734,7.17596615,193.11,192.91,118.19826463]
[1761271224735,2.57541709,193.05,192.98,0.71]
[1761271224939,2.57541709,193.02,192.96,34.71541709]
[1761271225249,2.57541709,193.04,192.97,39.26541709]
[1761271225553,2.57541709,193.04,192.99,10.87647521]
[1761271225554,4.59870193,193.03,192.99,10.87647521]
[1761271225844,0.72,193.05,193.02,5.18081027]
[1761271226029,3.87846719,193.04,193.02,5.18081027]
[1761271226224,3.87846719,193.03,193.0,16.05756604]
[1761271226429,3.87638272,193.02,193.0,5.18109083]
[1761271226628,0.72,193.02,193.0,5.18109083]
[1761271227226,37.5,193.01,193.0,5.18109083]
[1761271227438,0.72,193.02,192.99,18.13540847]
[1761271229854,0.72,193.02,192.99,18.84540847]
[1761271230836,0.72,193.02,192.99,18.13540847]
[1761271231551,0.72,193.02,192.99,18.84540847]
[1761271231858,0.72,193.02,192.99,18.13540847]
[1761271232357,0.72,193.02,192.99,5.18161562]
[1761271233961,2.57541709,193.0,192.98,5.18186733]
[1761271234134,2.57541709,193.0,192.94,12.95702919]
[1761271234449,0.72,192.99,192.94,51.53244628]
[1761271234662,0.72,192.99,192.94,56.71540471]
[1761271234879,0.72,192.99,192.96,2.57541709]
[1761271235041,0.72,193.03,192.98,2.57541709]
[1761271235372,26.17541709,193.05,192.99,2.57541709]
[1761271235545,3.86510028,193.04,192.99,2.57541709]
[1761271235870,4.58510028,193.04,192.99,3.28541709]
[1761271236067,0.72,193.03,193.0,5.18134715]
[1761271236268,0.72,193.03,192.95,0.71]
[1761271236442,0.72,193.03,192.93,13.4518923]
[1761271236443,2.57541709,192.99,192.93,13.4518923]
[1761271236643,2.57541709,192.99,192.94,36.0]
[1761271236866,0.72,192.99,192.94,38.57541709]
[1761271237046,0.72,192.98,192.94,39.28541709]
[1761271237253,7.6,192.98,192.95,3.28541709]
[1761271237679,8.32,192.98,192.95,2.57541709]
[1761271237976,8.32,192.98,192.94,38.57541709]
[1761271238172,8.32,192.98,192.95,5.18268981]
[1761271239888,8.32,192.98,192.95,41.18268981]
[1761271240553,0.72,192.97,192.95,41.18268981]
[1761271241446,0.72,192.97,192.94,5.18295843]
[1761271241761,0.72,192.97,192.95,36.0]